fUSD/lending_fUSD_20240415
["ID","MTS","AMOUNT","RATE_DAILY","PERIOD"]
[322658396,1713191982602,135.0,0.00015129,2]
[322658397,1713191982624,150.0,0.00015129,2]
[322658398,1713191982645,150.0,0.00015129,2]
[322658399,1713191982665,150.0,0.00015129,2]
[322658400,1713191982685,124.08776493,0.00015129,2]
[322658401,1713191982736,25.91223507,0.00015129,2]
[322658402,1713191982757,129.08776493,0.00015129,2]
[322658403,1713191982909,77.51632965,0.00015129,2]
[322658404,1713191982931,77.48367035,0.00015129,2]
[322658405,1713191983253,72.51632965,0.00015129,2]
[322658406,1713191983275,82.48367035,0.00015129,2]
[322658407,1713191983337,325.32875202,0.00015129,2]
[322658408,1713191983506,362.82589457,0.00015129,2]
[322658409,1713191984538,342.94151451,0.00015129,2]
[322658410,1713191985166,202.10380821,0.00015129,2]
[322658411,1713191997747,1050.0,0.00012098,2]
[322658412,1713192002562,597.38224073,0.00015169,2]
[322658413,1713192004097,4733.05974251,0.00015924,2]
[322658414,1713192004240,1367.46,0.00015105,2]
[322658415,1713192005170,591.14,0.00015105,2]
[322658416,1713192005429,591.14,0.00015109,2]
[322658417,1713192005686,591.14,0.00015113,2]
[322658418,1713192005946,591.14,0.00015117,2]
[322658419,1713192006418,591.14,0.00015121,2]
[322658420,1713192006655,591.14,0.00015125,2]
[322658421,1713192006877,591.14,0.00015129,2]
[322658422,1713192007084,591.14,0.00015133,2]
[322658423,1713192007469,591.14,0.00015137,2]
[322658424,1713192007657,591.14,0.00015141,2]
[322658425,1713192007803,591.14,0.00015145,2]
[322658426,1713192008031,591.14,0.00015149,2]
[322658427,1713192008332,591.14,0.00015153,2]
[322658428,1713192008496,591.14,0.00015157,2]
[322658429,1713192008752,591.14,0.00015161,2]
[322658430,1713192008789,264.01498696,0.00015168,2]
[322658431,1713192008933,164.32277315,0.00015168,2]
[322658432,1713192009007,591.14,0.00015165,2]
[322658433,1713192009446,591.14,0.00015169,2]
[322658434,1713192010693,591.14,0.00015173,2]
[322658435,1713192010781,591.14,0.00015177,2]
[322658436,1713192010847,155.0,0.00015168,2]
[322658437,1713192010894,591.14,0.00015181,2]
[322658438,1713192011104,233.34,0.00015099,2]
[322658439,1713192018484,331.87902263,0.00015169,2]
[322658440,1713192027585,388.175957,0.00015935,2]
[322658441,1713192031231,599.0425219,0.00015943,2]
[322658442,1713192036548,331.87902263,0.00015169,2]
[322658443,1713192042449,7666.07,0.00015082,2]
[322658444,1713192052742,172.90897079,0.00015169,2]
[322658445,1713192055122,3144.12142798,0.00016,2]
[322658446,1713192062552,200.0,0.00015076,2]
[322658447,1713192066867,500.0,0.00015076,2]
[322658448,1713192072495,172.90897079,0.00015169,2]
[322658449,1713192094506,172.90897079,0.00015169,2]
[322658450,1713192102079,2123.0,0.00028308,120]
[322658452,1713192112584,172.90897079,0.00015169,2]
[322658453,1713192113646,1775.0,0.00016001,2]
[322658454,1713192114173,408.60422186,0.00016,2]
[322658455,1713192114204,202.10380821,0.00016,2]
[322658456,1713192114237,200.35373079,0.00016,2]
[322658457,1713192114510,523.40353013,0.00016,2]
[322658458,1713192115328,407.97409068,0.00016,2]
[322658459,1713192116874,194.18145296,0.00016,2]
[322658460,1713192116934,267.13908293,0.00016,2]
[322658461,1713192117331,261.99266227,0.00016,2]
[322658462,1713192117822,5540.1843977,0.00016,2]
[322658463,1713192117933,500.0,0.00015063,2]
[322658464,1713192118061,645.24728945,0.00016,2]
[322658465,1713192118096,363.35522235,0.00016,2]
[322658466,1713192118305,246.10562957,0.00016,2]
[322658467,1713192118750,244.1942891,0.00016,2]
[322658468,1713192118899,155.0,0.00016,2]
[322658469,1713192119088,155.0,0.00016,2]
[322658470,1713192121605,296.33767696,0.00016,2]
[322658471,1713192121870,2357.32362164,0.00016,2]
[322658472,1713192122247,2997.32388708,0.00016,2]
[322658473,1713192122441,155.0,0.00016,2]
[322658474,1713192122489,206.54437025,0.00016,2]
[322658475,1713192122626,300.0,0.00016,2]
[322658476,1713192122868,155.0,0.00016,2]
[322658477,1713192123334,174.16559919,0.00016,2]
[322658478,1713192123653,155.0,0.00016,2]
[322658479,1713192124297,150.0,0.00016,2]
[322658480,1713192124394,155.0,0.00016,2]
[322658481,1713192124727,155.0,0.00016,2]
[322658482,1713192124974,526.2102462,0.00016,2]
[322658483,1713192125153,200.07388486,0.00016,2]
[322658484,1713192126040,155.0,0.00016,2]
[322658485,1713192126788,16977.97448994,0.00016,2]
[322658486,1713192126905,155.0,0.00015999,2]
[322658487,1713192127368,443.86081237,0.00015999,2]
[322658488,1713192127482,155.0,0.00015999,2]
[322658489,1713192128033,155.0,0.00015999,2]
[322658490,1713192128429,362.82589457,0.00015999,2]
[322658491,1713192128665,904.19716091,0.00015999,2]
[322658492,1713192129404,304.98221471,0.00015999,2]
[322658493,1713192130612,172.90897079,0.00015169,2]
[322658494,1713192132884,-150.0,0.00016,2]
[322658495,1713192133030,-150.0,0.00016,2]
[322658496,1713192133078,-150.0,0.00016,2]
[322658497,1713192133202,-150.0,0.00016,2]
[322658498,1713192133264,-150.0,0.00016,2]
[322658499,1713192133333,-150.0,0.00016,2]
[322658500,1713192133399,-150.0,0.00016,2]
[322658501,1713192133444,-150.0,0.00016,2]
[322658502,1713192133504,-150.0,0.00016,2]
[322658503,1713192133560,-150.0,0.00016,2]
[322658504,1713192133620,-150.0,0.00016,2]
[322658505,1713192133669,-150.0,0.00016,2]
[322658506,1713192133720,-150.0,0.00016,2]
[322658507,1713192134998,155.0,0.00015999,2]
[322658508,1713192135823,3379.09496254,0.00015999,2]
[322658509,1713192135937,161.3283795,0.00015999,2]
[322658510,1713192137859,4317.98495539,0.00015999,2]
[322658511,1713192138649,161.93831585,0.00015999,2]
[322658512,1713192139331,155.0,0.00015999,2]
[322658513,1713192139427,155.0,0.00015999,2]
[322658514,1713192139902,486.77201104,0.00015999,2]
[322658515,1713192139937,538.68100239,0.00015999,2]
[322658516,1713192140236,155.0,0.00015999,2]
[322658517,1713192140416,207.57645116,0.00015999,2]
[322658518,1713192140553,155.0,0.00015999,2]
[322658519,1713192140776,4723.74384284,0.00015999,2]
[322658520,1713192141242,155.0,0.00015999,2]
[322658521,1713192143661,155.0,0.00015999,2]
[322658522,1713192143706,155.0,0.00015999,2]
[322658523,1713192144021,263.48084287,0.00015999,2]
[322658524,1713192144200,1782.20366751,0.00015999,2]
[322658525,1713192144295,155.0,0.00015999,2]
[322658526,1713192144636,236.477768,0.00015999,2]
[322658527,1713192144878,3772.4841615,0.00015999,2]
[322658528,1713192145934,164.32277315,0.00015999,2]
[322658529,1713192146718,342.81490084,0.00015999,2]
[322658530,1713192146898,155.0,0.00015999,2]
[322658531,1713192147352,155.0,0.00015998,2]
[322658532,1713192147774,1298.00492959,0.00015999,2]
[322658533,1713192148541,172.90897079,0.00016,2]
[322658534,1713192148971,155.0,0.00015998,2]
[322658535,1713192149010,1243.05439062,0.00015998,2]
[322658536,1713192149070,4327.16409571,0.00015999,2]
[322658537,1713192149553,1551.32852703,0.00015998,2]
[322658538,1713192150669,705.68954947,0.00015998,2]
[322658539,1713192151201,155.0,0.00016,2]
[322658540,1713192151249,155.0,0.00015999,2]
[322658541,1713192151404,167.17024968,0.00015999,2]
[322658542,1713192151728,155.0,0.00015999,2]
[322658543,1713192152243,155.0,0.00015999,2]
[322658544,1713192152277,155.0,0.00015999,2]
[322658545,1713192152480,155.0,0.00015999,2]
[322658546,1713192154339,155.0,0.00015999,2]
[322658547,1713192154480,1992.55883175,0.00015999,2]
[322658548,1713192156172,155.0,0.00015999,2]
[322658549,1713192158087,2177.19801245,0.00015999,2]
[322658550,1713192158244,3162.57273202,0.00015999,2]
[322658551,1713192160251,325.32875202,0.00015999,2]
[322658554,1713192160472,4578.27056581,0.00015999,2]
[322658566,1713192160913,155.0,0.00015999,2]
[322658567,1713192161032,192.53344885,0.00015999,2]
[322658568,1713192161285,551.45180784,0.00015999,2]
[322658569,1713192161584,155.0,0.00015999,2]
[322658570,1713192161728,155.0,0.00015999,2]
[322658571,1713192161880,443.86081237,0.00015999,2]
[322658572,1713192162476,2352.85048105,0.00015999,2]
[322658573,1713192162906,155.0,0.00015998,2]
[322658574,1713192162970,157.07086707,0.00015998,2]
[322658575,1713192164942,537.3952011,0.00015998,2]
[322658576,1713192164977,683.40061206,0.00015999,2]
[322658577,1713192165087,419.30181526,0.00015998,2]
[322658578,1713192165421,251.31660939,0.00015998,2]
[322658579,1713192165541,3755.16366527,0.00015999,2]
[322658580,1713192165802,155.0,0.00015999,2]
[322658581,1713192166213,1867.2363406,0.00015999,2]
[322658582,1713192166538,172.90897079,0.00016,2]
[322658583,1713192167023,376.41305599,0.00015999,2]
[322658584,1713192167610,786.30514372,0.00015999,2]
[322658585,1713192168208,426.70228372,0.00015999,2]
[322658586,1713192168713,780.46960616,0.00015997,2]
[322658587,1713192169039,35216.94195786,0.00015999,2]
[322658588,1713192171970,155.0,0.00015999,2]
[322658589,1713192172738,621.22716563,0.00015999,2]
[322658590,1713192173092,156.31239167,0.00016,2]
[322658591,1713192173544,155.0,0.00015999,2]
[322658592,1713192174250,3162.57273202,0.0001521,2]
[322658593,1713192176495,155.0,0.00015999,2]
[322658594,1713192177300,399.36168126,0.0001593,2]
[322658595,1713192177726,2212.89221327,0.00015999,2]
[322658596,1713192178877,4578.27056581,0.00015996,2]
[322658597,1713192179276,1127.26737601,0.00015999,2]
[322658599,1713192182473,3934.96,0.00015576,2]
[322658600,1713192184651,251.31660939,0.0001585,2]
[322658601,1713192185741,532.55824777,0.00015998,2]
[322658602,1713192188525,172.90897079,0.00016,2]
[322658603,1713192188690,2997.32388708,0.00015999,2]
[322658604,1713192188838,5540.1843977,0.00015999,2]
[322658605,1713192192243,3162.57273202,0.0001521,2]
[322658606,1713192192708,200.35373079,0.00015999,2]
[322658607,1713192193956,267.13908293,0.00015999,2]
[322658608,1713192193993,155.0,0.00015999,2]
[322658609,1713192194933,362.82589457,0.00015999,2]
[322658610,1713192196594,363.35522235,0.00015999,2]
[322658611,1713192198092,155.0,0.00015999,2]
[322658612,1713192198875,4578.27056581,0.00015996,2]
[322658613,1713192198974,206.54437025,0.00015999,2]
[322658614,1713192199218,194.18145296,0.00015999,2]
[322658615,1713192199797,407.97409068,0.00015999,2]
[322658616,1713192199914,-155.0,0.00016001,2]
[322658617,1713192199936,-2357.32362164,0.00016001,2]
[322658618,1713192199960,-426.70228372,0.00016002,2]
[322658619,1713192200349,-621.13012598,0.00016005,2]
[322658620,1713192200378,-10555.34394596,0.00016009,2]
[322658621,1713192200402,-164.36657524,0.0001601,2]
[322658622,1713192200424,-162.73303659,0.0001601,2]
[322658623,1713192200447,-689.40041087,0.0001601,2]
[322658624,1713192201154,251.31660939,0.0001585,2]
[322658625,1713192206529,172.90897079,0.00015999,2]
[322658626,1713192210334,486.77201104,0.00015999,2]
[322658627,1713192213216,4723.74384284,0.00015999,2]
[322658628,1713192213632,200.07388486,0.00015999,2]
[322658629,1713192214251,877.36144587,0.0001521,2]
[322658630,1713192214797,296.33767696,0.00015999,2]
[322658631,1713192215675,155.0,0.00015999,2]
[322658632,1713192217190,161.93831585,0.00015999,2]
[322658633,1713192218202,155.0,0.00015999,2]
[322658634,1713192218364,4317.98495539,0.00015999,2]
[322658635,1713192221250,906.76387017,0.00015999,2]
[322658636,1713192221634,4327.16409571,0.00015999,2]
[322658637,1713192222857,1298.00492959,0.00015999,2]
[322658638,1713192222974,207.57645116,0.00015999,2]
[322658639,1713192223009,607.769985,0.00015999,2]
[322658640,1713192223239,327.8691941,0.00015854,2]
[322658641,1713192223676,296.4,0.0001556,2]
[322658642,1713192224663,172.90897079,0.00015999,2]
[322658643,1713192224878,4578.27056581,0.00016,2]
[322658644,1713192225048,155.0,0.00015999,2]
[322658645,1713192225386,3772.4841615,0.00015999,2]
[322658646,1713192225489,1243.05439062,0.00015999,2]
[322658647,1713192226353,1992.55883175,0.00015999,2]
[322658648,1713192226590,155.0,0.00015999,2]
[322658649,1713192227479,155.0,0.00015999,2]
[322658650,1713192228252,155.0,0.00015999,2]
[322658651,1713192229282,263.48084287,0.00015999,2]
[322658652,1713192232059,155.0,0.00015999,2]
[322658653,1713192233802,551.45180784,0.00015999,2]
[322658654,1713192235190,192.53344885,0.00015999,2]
[322658655,1713192236031,35216.94195786,0.00015999,2]
[322658656,1713192236346,3379.09496254,0.00015999,2]
[322658657,1713192238214,155.0,0.00015999,2]
[322658658,1713192238372,436.48,0.00016006,3]
[322658659,1713192238600,2177.19801245,0.00015999,2]
[322658660,1713192238673,872.96,0.00017376,3]
[322658661,1713192239007,2352.85048105,0.00015998,2]
[322658662,1713192239187,236.477768,0.00015999,2]
[322658663,1713192240415,683.40061206,0.00015998,2]
[322658664,1713192240525,155.65126159,0.00015999,2]
[322658665,1713192242508,157.07086707,0.00015999,2]
[322658666,1713192243106,1867.2363406,0.00015999,2]
[322658667,1713192243405,155.0,0.00015999,2]
[322658668,1713192244876,4641.53229948,0.00016,2]
[322658669,1713192245259,621.22716563,0.00015999,2]
[322658670,1713192245518,376.41305599,0.00015999,2]
[322658671,1713192246116,786.30514372,0.00015999,2]
[322658672,1713192249318,524.51,0.00016006,3]
[322658673,1713192249549,1049.02,0.00017376,3]
[322658674,1713192251905,6832.31,0.00015207,2]
[322658675,1713192253810,780.46960616,0.00015999,2]
[322658676,1713192254202,155.0,0.00015999,2]
[322658677,1713192257110,155.0,0.00015999,2]
[322658678,1713192260210,262.26,0.00016004,3]
[322658679,1713192260368,523.40353013,0.00015999,2]
[322658680,1713192260434,524.52,0.00017374,3]
[322658681,1713192262242,532.55824777,0.00015999,2]
[322658682,1713192266346,5540.1843977,0.00015999,2]
[322658683,1713192267161,2997.32388708,0.00015999,2]
[322658684,1713192269149,267.13908293,0.00015999,2]
[322658685,1713192271030,786.78,0.00016003,3]
[322658686,1713192272434,10555.34394596,0.00015999,2]
[322658687,1713192278114,2357.32362164,0.00015999,2]
[322658688,1713192280487,363.35522235,0.00015999,2]
[322658689,1713192281691,194.18145296,0.00015999,2]
[322658690,1713192286614,1021.93,0.00013164,2]
[322658691,1713192286681,1021.93,0.00015428,2]
[322658692,1713192287428,207.57645116,0.00015999,2]
[322658693,1713192289706,1000.0,0.00035252,31]
[322658694,1713192290311,407.97409068,0.00015999,2]
[322658695,1713192291613,155.0,0.00015427,2]
[322658696,1713192291731,4723.74384284,0.00015999,2]
[322658697,1713192296241,1243.05439062,0.00015999,2]
[322658698,1713192303001,150.0,0.00015999,2]
[322658699,1713192304395,155.0,0.00015999,2]
[322658700,1713192304992,155.0,0.00015998,2]
[322658701,1713192305482,150.0,0.00015973,2]
[322658702,1713192306234,551.45180784,0.00015999,2]
[322658703,1713192309779,263.48084287,0.00015999,2]
[322658704,1713192310388,1000.0,0.00015082,2]
[322658705,1713192313804,250.0,0.00015082,2]
[322658706,1713192315118,2177.19801245,0.00015999,2]
[322658707,1713192315765,2352.85048105,0.00015999,2]
[322658708,1713192316031,621.22716563,0.00015999,2]
[322658709,1713192317650,683.40061206,0.00015999,2]
[322658710,1713192317985,192.53344885,0.00015999,2]
[322658711,1713192322551,155.0,0.00015999,2]
[322658712,1713192326016,266.24112084,0.00015915,2]
[322658713,1713192328621,786.30514372,0.00015999,2]
[322658714,1713192330367,157.07086707,0.00015999,2]
[322658715,1713192331068,246.10562957,0.00015999,2]
[322658716,1713192335539,304.98221471,0.00015999,2]
[322658717,1713192338375,155.0,0.00015998,2]
[322658718,1713192352338,1719.37,0.00015085,2]
[322658719,1713192385594,3885.57,0.00015065,2]
[322658720,1713192389818,500.0,0.00015065,2]
[322658721,1713192390643,428.95484578,0.00015999,2]
[322658722,1713192400391,523.40353013,0.00015999,2]
[322658723,1713192401329,532.55824777,0.00015999,2]
[322658724,1713192407525,155.0,0.00015999,2]
[322658725,1713192410115,304.98221471,0.00015999,2]
[322658726,1713192410546,157.07086707,0.00015999,2]
[322658727,1713192410879,246.10562957,0.00015999,2]
[322658728,1713192412657,-194.18145296,0.00016,2]
[322658729,1713192412680,-2997.32388708,0.00016,2]
[322658730,1713192412704,-363.35522235,0.00016001,2]
[322658731,1713192412732,-207.57645116,0.00016001,2]
[322658732,1713192412760,-645.24728945,0.00016002,2]
[322658733,1713192412785,-645.24728945,0.00016002,2]
[322658734,1713192412809,-549.42179334,0.00016006,2]
[322658735,1713192412834,-224.67270903,0.0001601,2]
[322658736,1713192412857,-529.98740568,0.0001601,2]
[322658737,1713192412880,-178.82881797,0.0001601,2]
[322658738,1713192412903,-156.0501351,0.0001601,2]
[322658739,1713192412927,-195.97917074,0.0001601,2]
[322658740,1713192412950,-156.54926168,0.0001601,2]
[322658741,1713192412975,-247.66095273,0.0001601,2]
[322658742,1713192412998,-233.59824467,0.0001601,2]
[322658743,1713192413021,-155.62137156,0.0001601,2]
[322658744,1713192413043,-155.0,0.0001601,2]
[322658745,1713192413066,-1309.06247869,0.0001601,2]
[322658746,1713192413089,-296.52526315,0.0001601,2]
[322658747,1713192413431,-195.516326,0.0001601,2]
[322658748,1713192413455,-287.78233984,0.0001601,2]
[322658749,1713192413481,-426.21122798,0.0001601,2]
[322658750,1713192413503,-168.34835014,0.0001601,2]
[322658751,1713192413525,-325.37506637,0.0001601,2]
[322658752,1713192413546,-207.88378701,0.0001601,2]
[322658753,1713192413568,-557.57550864,0.0001601,2]
[322658754,1713192413589,-251.36179256,0.0001601,2]
[322658755,1713192413610,-164.61352808,0.0001601,2]
[322658756,1713192413632,-526.10830882,0.0001601,2]
[322658757,1713192413654,-2151.96131432,0.0001601,2]
[322658758,1713192413677,-220.82807201,0.0001601,2]
[322658759,1713192413699,-1238.37711086,0.0001601,2]
[322658760,1713192413726,-1171.35022245,0.0001601,2]
[322658761,1713192413752,-19918.41080973,0.0001601,2]
[322658762,1713192413774,-155.42199688,0.0001601,2]
[322658763,1713192413795,-350.77166126,0.0001601,2]
[322658764,1713192413817,-378.54451516,0.0001601,2]
[322658765,1713192413844,-155.785166,0.0001601,2]
[322658766,1713192413867,-269.89132436,0.00016011,2]
[322658767,1713192413889,-155.34295984,0.00016011,2]
[322658768,1713192413911,-211.74095186,0.00016011,2]
[322658769,1713192413934,-325.118147,0.00016011,2]
[322658770,1713192413956,-2268.26882425,0.00016011,2]
[322658771,1713192413981,-267.70067574,0.00016011,2]
[322658772,1713192414003,-4536.07697603,0.00016011,2]
[322658773,1713192414024,-309.59058991,0.00016011,2]
[322658774,1713192414049,-838.84340731,0.00016011,2]
[322658775,1713192414070,-259.92060141,0.00016011,2]
[322658776,1713192414092,-157.68520801,0.00016011,2]
[322658777,1713192414113,-219.89815157,0.00016011,2]
[322658778,1713192414135,-224.72510172,0.00016011,2]
[322658779,1713192414158,-2134.09319824,0.00016011,2]
[322658780,1713192414180,-191.81665564,0.00016011,2]
[322658781,1713192414201,-413.22821363,0.00016011,2]
[322658782,1713192414226,-160.79885904,0.00016011,2]
[322658783,1713192414247,-329.04584056,0.00016011,2]
[322658784,1713192414269,-635.49607535,0.00016011,2]
[322658785,1713192414291,-423.8176794,0.00016011,2]
[322658786,1713192414314,-316.15089288,0.00016011,2]
[322658787,1713192414336,-393.52906796,0.00016011,2]
[322658788,1713192414359,-245.56779934,0.00016011,2]
[322658789,1713192414380,-428.15705754,0.00016011,2]
[322658790,1713192414402,-203.18480671,0.00016012,2]
[322658791,1713192414425,-538.70776488,0.00016012,2]
[322658792,1713192414447,-155.05080076,0.00016012,2]
[322658793,1713192414472,-156.3794146,0.00016012,2]
[322658794,1713192414505,-307.60360476,0.00016012,2]
[322658795,1713192414531,-157.52739957,0.00016012,2]
[322658796,1713192414555,-298.89000914,0.00016012,2]
[322658797,1713192414580,-246.14140825,0.00016012,2]
[322658798,1713192414606,-654.71771811,0.00016012,2]
[322658799,1713192414631,-157.00663172,0.00016012,2]
[322658800,1713192414658,-11240.38519159,0.00016013,2]
[322658801,1713192414684,-78900.78469042,0.00016013,2]
[322658802,1713192415667,10555.34394596,0.00015999,2]
[322658803,1713192416353,200.0,0.00015081,2]
[322658804,1713192418270,397.03,0.00015722,2]
[322658805,1713192418391,397.03,0.00015765,2]
[322658806,1713192418497,397.03,0.00015808,2]
[322658807,1713192418568,397.03,0.00015851,2]
[322658808,1713192418652,397.03,0.00015894,2]
[322658809,1713192418956,397.03,0.00015937,2]
[322658810,1713192419023,397.03,0.0001598,2]
[322658811,1713192426064,200.0,0.00015593,2]
[322658812,1713192431883,649.98,0.0001556,2]
[322658813,1713192432262,-625.19564388,0.00016011,2]
[322658814,1713192432285,-303.53418169,0.00016011,2]
[322658815,1713192432307,-269.01835946,0.00016011,2]
[322658816,1713192432329,-333.43799441,0.00016011,2]
[322658817,1713192432350,-192.22096035,0.00016011,2]
[322658818,1713192432372,-2997.32388708,0.00016011,2]
[322658819,1713192432393,-319.22024931,0.00016011,2]
[322658820,1713192432415,-377.81703603,0.00016011,2]
[322658821,1713192432436,-554.65094577,0.00016012,2]
[322658822,1713192432458,-155.0,0.00016012,2]
[322658823,1713192432484,-5872.58074202,0.00016013,2]
[322658824,1713192454638,-220.54299184,0.00016012,2]
[322658825,1713192455276,-67.44290388,0.00016012,2]
[322658826,1713192455299,-82.55709612,0.00016012,2]
[322658827,1713192455545,1900.0,0.000159,5]
[322658828,1713192455605,-150.0,0.00016012,2]
[322658829,1713192456050,-150.0,0.00016012,2]
[322658830,1713192456545,-150.0,0.00016012,2]
[322658831,1713192457132,-150.0,0.00016012,2]
[322658832,1713192468568,287.98589572,0.00015595,2]
[322658833,1713192468590,850.59410428,0.00015595,2]
[322658834,1713192480001,9099.8,0.00015583,2]
[322658835,1713192480284,150.0,0.00015583,2]
[322658837,1713192490770,943.63,0.00015611,2]
[322658838,1713192494432,154.32,0.00015611,2]
[322658839,1713192494623,154.32,0.00015637,2]
[322658840,1713192494800,154.32,0.00015663,2]
[322658841,1713192495314,154.32,0.00015689,2]
[322658842,1713192498910,-150.0,0.00016011,2]
[322658843,1713192498931,-2314.76679096,0.00016012,2]
[322658844,1713192498952,-17535.23320904,0.00016013,2]
[322658845,1713192509325,23900.0,0.00015638,2]
[322658846,1713192509750,241.07,0.00015638,2]
[322658848,1713192514940,441.05698349,0.00016,2]
[322658849,1713192527134,970.27,0.00015693,2]
[322658850,1713192530489,11514.88271627,0.00015915,2]
[322658851,1713192532892,1279.32448358,0.00016,2]
[322658852,1713192541689,1072.81395484,0.00016,2]
[322658853,1713192544762,3011.67,0.00018,3]
[322658854,1713192551687,502.51,0.00015714,2]
[322658855,1713192569871,478.61,0.00015813,2]
[322658856,1713192580581,151.17878687,0.00015913,2]
[322658857,1713192585537,151.17878683,0.00015913,2]
[322658858,1713192590532,151.17878683,0.00015913,2]
[322658859,1713192595563,151.17878683,0.00015914,2]
[322658860,1713192600687,151.17878683,0.00015914,2]
[322658861,1713192601167,2398.37776829,0.00016,2]
[322658862,1713192605848,151.17878683,0.00015914,2]
[322658863,1713192610512,151.17878683,0.00015914,2]
[322658864,1713192615591,151.17878683,0.00015914,2]
[322658865,1713192620214,488.293464,0.0001589,2]
[322658866,1713192620657,151.17878683,0.00015914,2]
[322658867,1713192625614,1790.37,0.00015595,2]
[322658868,1713192625791,151.17878683,0.00015915,2]
[322658869,1713192630553,151.17878683,0.00015915,2]
[322658882,1713192632131,-709.08776493,0.00016003,2]
[322658883,1713192632141,-1043.00041347,0.00016004,2]
[322658884,1713192632258,-6486.5,0.00016004,2]
[322658885,1713192632270,-325.3846,0.00016004,2]
[322658886,1713192632281,-316.0,0.00016004,2]
[322658887,1713192632292,-19415.4553,0.00016004,2]
[322658888,1713192632332,-317.06523479,0.00016004,2]
[322658889,1713192632344,-721.90195583,0.00016004,2]
[322658890,1713192632383,-29672.000001,0.00016004,2]
[322658891,1713192632394,-10679.590396,0.00016004,2]
[322658912,1713192634819,6271.87,0.00015602,2]
[322658913,1713192635551,151.17878683,0.00015915,2]
[322658919,1713192638095,-3263.84275379,0.00016003,2]
[322658920,1713192638111,-31953.09920407,0.00016003,2]
[322658921,1713192638120,-44112.30215781,0.00016003,2]
[322658922,1713192638149,-501511.53499523,0.00016003,2]
[322658923,1713192638159,-40225.85118771,0.00016004,2]
[322658924,1713192638169,-1266.84120828,0.00016008,2]
[322658925,1713192638178,-3772.4841615,0.00016009,2]
[322658926,1713192638187,-2997.32388708,0.00016009,2]
[322658927,1713192638197,-1774.81593737,0.0001601,2]
[322658928,1713192638206,-313.09240719,0.0001601,2]
[322658929,1713192638215,-264.01498696,0.0001601,2]
[322658930,1713192638224,-304.53259239,0.00016011,2]
[322658931,1713192638233,-620.54602664,0.00016011,2]
[322658932,1713192638242,-157.77059454,0.00016011,2]
[322658933,1713192638252,-174.7745079,0.00016011,2]
[322658934,1713192638261,-155.0,0.00016011,2]
[322658935,1713192638270,-445.50447957,0.00016011,2]
[322658936,1713192638279,-155.0,0.00016011,2]
[322658937,1713192638288,-155.0,0.00016011,2]
[322658938,1713192638297,-4721.76014382,0.00016011,2]
[322658939,1713192638307,-491.45044814,0.00016014,2]
[322658942,1713192638630,-201.54399571,0.00016014,2]
[322658943,1713192638641,-310.82433516,0.00016014,2]
[322658944,1713192638651,-168.71121844,0.00016014,2]
[322658945,1713192638661,-233.63015905,0.00016014,2]
[322658946,1713192638671,-3571.47779726,0.00016014,2]
[322658947,1713192638680,-294.866017,0.00016014,2]
[322658948,1713192638690,-1146.09276526,0.00016014,2]
[322658949,1713192638699,-3022.83898649,0.00016014,2]
[322658950,1713192638708,-216.64031208,0.00016014,2]
[322658951,1713192638718,-232.91659245,0.00016014,2]